bitfinex-derivatives/quotes_SOLF0:USTF0_20250623
["timestamp","ask_amount","ask_price","bid_price","bid_amount"]
[1750716604149,4.4985,144.26,144.14,270.2]
[1750716604352,4.4985,144.26,144.11,615.00905686]
[1750716604353,16.12905686,144.24,144.11,598.88]
[1750716604556,16.12905686,144.24,144.09,16.12905686]
[1750716604758,4.4985,144.26,144.09,194.08]
[1750716604759,16.12905686,144.21,144.09,194.08]
[1750716604958,16.12905686,144.18,144.09,194.08]
[1750716605270,75.2,144.21,144.09,16.12905686]
[1750716605271,2.364,144.17,144.09,16.12905686]
[1750716605645,2.2776,144.2,144.09,16.12905686]
[1750716606053,18.40665686,144.2,144.07,78.12905686]
[1750716606357,16.12905686,144.16,144.02,883.92905686]
[1750716606658,91.32905686,144.19,144.05,16.12905686]
[1750716606854,16.12905686,144.16,144.02,598.74]
[1750716607159,4.6254,144.15,144.12,6.9346]
[1750716607458,2.364,144.15,144.06,16.12905686]
[1750716607655,2.2776,144.2,144.09,16.12905686]
[1750716607862,2.2776,144.2,144.1,193.78]
[1750716608068,20.75445686,144.28,144.12,16.12905686]
[1750716608253,2.2744,144.27,144.15,16.12905686]
[1750716608453,2.2744,144.27,144.12,16.12905686]
[1750716608662,2.2744,144.27,144.15,16.12905686]
[1750716608958,18.40345686,144.27,144.15,16.12905686]
[1750716609158,18.40345686,144.27,144.16,62.0]
[1750716609461,18.40345686,144.27,144.09,193.66]
[1750716609462,2.2744,144.27,144.09,193.66]
[1750716609661,16.12905686,144.24,144.09,209.78905686]
[1750716609861,16.12905686,144.24,144.12,16.12905686]
[1750716610160,16.12905686,144.26,144.12,16.12905686]
[1750716610557,2.2744,144.27,144.15,16.12905686]
[1750716610762,2.2744,144.27,144.18,16.12905686]
[1750716611062,2.364,144.28,144.19,193.44]
[1750716612358,2.364,144.28,144.2,62.0]
[1750716612951,6.9287,144.25,144.19,193.44]
[1750716613152,16.12905686,144.26,144.12,16.12905686]
[1750716613459,2.1977,144.24,144.1,193.04]
[1750716613656,16.12905686,144.2,144.08,75.22]
[1750716613858,2.2054,144.19,144.07,16.12905686]
[1750716614066,6.9339,144.14,144.05,192.94]
[1750716614363,2.2054,144.19,144.05,192.94]
[1750716614568,16.12905686,144.17,144.08,6.9367]
[1750716614868,2.2054,144.19,144.01,16.12905686]
[1750716615063,16.12905686,144.17,144.09,6.9363]
[1750716615378,2.2054,144.19,144.09,192.64]
[1750716615557,75.22,144.23,144.13,16.12905686]
[1750716615770,2.4185,144.25,144.16,16.12905686]
[1750716615961,598.78,144.38,144.16,16.12905686]
[1750716615962,4.7158,144.31,144.22,16.12905686]
[1750716616271,75.22,144.39,144.28,16.12905686]
[1750716616467,4.7158,144.38,144.28,16.12905686]
[1750716616765,16.12905686,144.37,144.19,674.0]
[1750716616958,16.12905686,144.35,144.2,16.12905686]
[1750716617259,16.12905686,144.31,144.16,75.22]
[1750716617465,598.8,144.36,144.1,598.8]
[1750716617466,16.12905686,144.28,144.13,16.12905686]
[1750716617765,6.9696,144.27,144.13,16.12905686]
[1750716618059,6.9696,144.27,144.12,270.4]
[1750716618060,6.9309,144.21,144.16,6.9328]
[1750716618257,16.12905686,144.25,144.12,270.62]
[1750716619161,6.9696,144.27,144.13,16.12905686]
[1750716619551,6.9696,144.27,144.21,6.9301]
[1750716619757,6.9696,144.27,144.16,16.12905686]
[1750716619958,6.9696,144.27,144.14,16.12905686]
[1750716620163,6.9696,144.27,144.19,6.9312]
[1750716620462,6.9696,144.27,144.17,16.12905686]
[1750716621369,6.9696,144.27,144.12,270.62]
[1750716621666,6.9696,144.27,144.15,16.12905686]
[1750716622465,6.9696,144.27,144.12,270.62]
[1750716622789,4.6347,144.27,144.12,270.62]
[1750716622959,4.6347,144.27,144.2,16.12905686]
[1750716623154,6.9275,144.28,144.13,75.8688]
[1750716623355,4.6925,144.31,144.16,16.12905686]
[1750716623555,10.5692451,144.31,144.19,16.12905686]
[1750716624165,4.6925,144.31,144.22,16.12905686]
[1750716624365,8.52256648,144.45,144.28,16.12905686]
[1750716624556,8.52256648,144.51,144.32,16.12905686]
[1750716624870,8.2147247,144.52,144.38,16.12905686]
[1750716625159,8.2147247,144.52,144.32,275.48]
[1750716625160,6.921,144.41,144.32,275.48]
[1750716625365,8.52256648,144.49,144.32,16.12905686]
[1750716625555,5.8778247,144.5,144.38,16.12905686]
[1750716625755,5.8778247,144.51,144.42,16.12905686]
[1750716626064,4.08229826,144.54,144.45,16.12905686]
[1750716626365,4.08229826,144.54,144.38,198.7]
[1750716626667,81.30229826,144.54,144.39,16.12905686]
[1750716626860,5.73020196,144.53,144.4,16.12905686]
[1750716627049,81.30229826,144.54,144.43,16.12905686]
[1750716627254,81.30229826,144.54,144.37,275.76]
[1750716627449,16.12905686,144.51,144.38,16.12905686]
[1750716627808,5.72836205,144.5,144.36,16.12905686]
[1750716628156,16.12905686,144.51,144.36,16.12905686]
[1750716628361,16.12905686,144.52,144.39,16.12905686]
[1750716628664,695.97135512,144.54,144.39,16.12905686]
[1750716628874,5.73002764,144.53,144.32,16.12905686]
[1750716629162,5.72981352,144.53,144.42,16.12905686]
[1750716629373,16.12905686,144.5,144.37,16.12905686]
[1750716629561,2.55675133,144.53,144.23,2675.199]
[1750716629763,6.9222,144.39,144.33,6.9246]
[1750716629965,77.2,144.45,144.31,16.12905686]
[1750716630170,7.0113,144.43,144.31,16.12905686]
[1750716630358,7.0113,144.43,144.34,16.12905686]
[1750716630667,7.0113,144.43,144.32,16.12905686]
[1750716631070,7.0113,144.43,144.31,16.12905686]
[1750716631260,12.75153611,144.43,144.29,16.12905686]
[1750716631562,12.78384972,144.48,144.26,62.0]
[1750716631563,8.52256648,144.49,144.35,16.12905686]
[1750716631764,28.88587591,144.48,144.35,16.12905686]
[1750716631980,5.74551905,144.47,144.33,16.12905686]
[1750716632166,21.87457591,144.46,144.33,16.12905686]
[1750716632369,5.74551905,144.45,144.33,16.12905686]
[1750716633058,5.74551905,144.47,144.36,16.12905686]
[1750716633370,12.75681905,144.48,144.36,16.12905686]
[1750716633580,5.74551905,144.47,144.36,16.12905686]
[1750716633869,7.0113,144.48,144.36,16.12905686]
[1750716634080,7.0113,144.48,144.39,16.12905686]
[1750716634373,6.9209,144.42,144.35,6.9237]
[1750716634665,5.72184592,144.46,144.29,16.12905686]
[1750716634867,6.9199,144.44,144.37,6.9225]
[1750716635166,7.0113,144.48,144.35,16.12905686]
[1750716635369,6.919,144.46,144.4,6.9214]
[1750716635567,7.0113,144.48,144.38,16.12905686]
[1750716635966,6.9204,144.43,144.38,16.12905686]
[1750716636164,5.71575481,144.47,144.34,16.12905686]
[1750716636465,7.0113,144.48,144.37,16.12905686]
[1750716636466,2.3333,144.48,144.37,16.12905686]
[1750716637264,2.3333,144.48,144.4,16.12905686]
[1750716637469,6.9182,144.47,144.41,6.9205]
[1750716637773,2.3333,144.48,144.4,16.12905686]
[1750716637965,2.3333,144.48,144.35,196.78]
[1750716637966,6.9194,144.45,144.39,6.9215]
[1750716638160,2.3333,144.48,144.39,6.9215]
[1750716638357,2.3333,144.48,144.37,16.12905686]
[1750716638880,2.3333,144.48,144.35,212.90905686]
[1750716639167,16.12905686,144.43,144.3,16.12905686]
[1750716639364,4.5882,144.42,144.3,16.12905686]
[1750716639670,16.12905686,144.41,144.28,16.12905686]
[1750716639868,4.5882,144.42,144.3,16.12905686]
[1750716640172,5.81428111,144.41,144.3,16.12905686]
[1750716640469,4.5882,144.42,144.26,77.16]
[1750716640770,5.81947453,144.41,144.26,77.16]
[1750716640973,21.94853139,144.4,144.27,16.12905686]
[1750716641165,5.81947453,144.39,144.27,16.12905686]
[1750716641464,77.16,144.41,144.27,16.12905686]
[1750716641465,5.81947453,144.4,144.27,16.12905686]
[1750716641666,16.12905686,144.38,144.25,16.12905686]
[1750716641869,5.81947453,144.37,144.28,16.12905686]
[1750716642066,5.81947453,144.38,144.28,16.12905686]
[1750716642262,2.3186,144.39,144.28,16.12905686]
[1750716642574,8.13807453,144.39,144.28,16.12905686]
[1750716642874,2.3186,144.39,144.28,16.12905686]
[1750716644066,18.44765686,144.39,144.26,16.12905686]
[1750716644274,5.8208035,144.38,144.26,16.12905686]
[1750716644460,18.44765686,144.39,144.26,16.12905686]
[1750716644461,2.3186,144.39,144.26,16.12905686]
[1750716645061,18.44765686,144.39,144.26,16.12905686]
[1750716645284,18.44765686,144.39,144.23,598.02]
[1750716645285,16.12905686,144.36,144.23,614.14905686]
[1750716645482,16.12905686,144.36,144.13,13.8682]
[1750716645483,16.12905686,144.33,144.19,16.12905686]
[1750716645767,16.12905686,144.33,144.19,6.9315]
[1750716645768,6.9295,144.24,144.19,6.9315]
[1750716645965,16.12905686,144.3,144.16,75.16]
[1750716646166,20.68655686,144.32,144.17,16.12905686]
[1750716646372,5.80446672,144.31,144.17,16.12905686]
[1750716646768,20.68655686,144.32,144.16,75.16]
[1750716646769,6.9263,144.3,144.23,16.12905686]
[1750716646965,2.2041,144.32,144.23,16.12905686]
[1750716647162,2.2041,144.32,144.16,75.16]
[1750716647364,6.9275,144.28,144.23,6.9293]
[1750716647588,2.3534,144.38,144.27,16.12905686]
[1750716647874,6.9254,144.32,144.28,6.9272]
[1750716648070,16.12905686,144.36,144.02,27.7587]
[1750716648271,16.12905686,144.34,144.2,16.12905686]
[1750716648662,91.30905686,144.34,144.18,16.12905686]
[1750716649165,16.12905686,144.33,144.13,269.5]
[1750716649358,6.929,144.25,144.19,6.9313]
[1750716649679,75.18,144.34,144.13,91.30905686]
[1750716649680,16.12905686,144.27,144.13,91.30905686]
[1750716649968,4.797,144.29,144.13,91.30905686]
[1750716650275,2.2521,144.28,144.16,16.12905686]
[1750716650773,2.2521,144.28,144.18,16.12905686]
[1750716651076,2.2521,144.28,144.15,16.12905686]
[1750716651973,16.12905686,144.26,144.13,75.18]
[1750716652171,16.12905686,144.25,144.14,62.0]
[1750716652369,16.12905686,144.25,144.13,75.18]
[1750716652568,91.32905686,144.25,144.1,16.12905686]
[1750716652777,16.12905686,144.22,144.1,16.12905686]
[1750716652975,6.9334,144.16,144.1,23.06455686]
[1750716653174,16.12905686,144.19,144.07,16.12905686]
[1750716653368,13.86,144.23,144.07,16.12905686]
[1750716653576,16.12905686,144.23,144.07,16.12905686]
[1750716653768,5.84039865,144.22,144.07,16.12905686]
[1750716653967,16.12905686,144.17,144.07,6.9373]
[1750716654166,16.12905686,144.2,144.04,16.12905686]
[1750716654367,16.12905686,144.2,144.02,673.52]
[1750716654368,18.40045686,144.2,144.02,673.52]
[1750716654570,6.9331,144.16,144.07,16.12905686]
[1750716654969,2.2117,144.19,144.07,16.12905686]
[1750716655377,18.34075686,144.19,144.02,673.52]
[1750716655577,2.2521,144.28,144.15,16.12905686]
[1750716655803,18.38115686,144.28,144.13,192.28]
[1750716655969,16.12905686,144.25,144.08,192.36]
[1750716656272,16.12905686,144.27,144.14,16.12905686]
[1750716656480,2.2521,144.28,144.14,16.12905686]
[1750716656481,18.38115686,144.28,144.14,16.12905686]
[1750716656673,6.931,144.21,144.15,6.9331]
[1750716656872,6.931,144.21,144.08,192.36]
[1750716657074,18.38115686,144.28,144.14,16.12905686]
[1750716657380,18.38115686,144.28,144.08,192.36]
[1750716657381,18.38115686,144.28,144.13,16.12905686]
[1750716657973,16.12905686,144.25,144.13,16.12905686]
[1750716658484,73.22,144.24,144.13,16.12905686]
[1750716659377,89.34905686,144.24,144.13,16.12905686]
[1750716659581,16.12905686,144.21,144.07,16.12905686]
[1750716659890,7.2123,144.2,144.07,16.12905686]
[1750716660377,7.2123,144.2,144.09,9.82504163]
[1750716660984,73.22,144.24,144.15,9.82504163]
[1750716661482,9.82504163,144.18,144.07,9.82504163]
[1750716661677,9.82504163,144.21,144.1,9.82504163]
[1750716661877,9.82504163,144.21,144.07,9.82504163]
[1750716662074,2.3888,144.2,144.07,9.82504163]
[1750716662382,6.9303,144.22,144.13,9.82504163]
[1750716662583,9.82504163,144.23,144.13,9.82504163]
[1750716662784,9.82504163,144.22,144.11,9.82504163]
[1750716662983,73.22,144.24,144.14,9.82504163]
[1750716663286,73.22,144.24,144.17,9.82504163]
[1750716663584,680.52256648,144.37,144.2,9.82504163]
[1750716663782,17.01824163,144.34,144.23,9.82504163]
[1750716664173,7.1932,144.34,144.23,9.82504163]
[1750716664377,7.1932,144.34,144.24,16.12445535]
[1750716664579,2.406,144.34,144.24,16.12445535]
[1750716665281,598.78,144.37,144.22,73.22]
[1750716665282,598.78,144.37,144.27,16.12445535]
[1750716665491,6.9236,144.36,144.3,6.9263]
[1750716665677,598.78,144.37,144.27,16.12445535]
[1750716665874,73.22,144.39,144.3,16.12445535]
[1750716666273,73.22,144.39,144.3,78.12445535]
[1750716666482,6.9239,144.36,144.3,85.05055535]
[1750716666686,73.22,144.39,144.3,78.12445535]
[1750716666889,2.406,144.43,144.3,78.12445535]
[1750716667101,2.3159,144.46,144.36,16.12445535]
[1750716667286,73.22,144.48,144.3,135.22]
[1750716667583,18.54715535,144.52,144.41,16.12445535]
[1750716667584,2.3159,144.51,144.41,16.12445535]
[1750716667806,2.4227,144.52,144.44,16.12445535]
[1750716667979,4.08229826,144.54,144.43,16.12445535]
[1750716668312,4.08229826,144.54,144.42,16.12445535]
[1750716668485,4.08229826,144.54,144.49,6.9168]
[1750716668681,4.08229826,144.54,144.45,16.12445535]
[1750716669485,4.08229826,144.54,144.46,16.12445535]
[1750716670281,4.08229826,144.54,144.46,71.26]
[1750716670486,9.826e-05,144.54,144.52,16.12445535]
[1750716670683,9.826e-05,144.54,144.53,6.9153]
[1750716671089,9.826e-05,144.54,144.49,16.12445535]
[1750716671291,9.826e-05,144.54,144.44,16.12445535]
[1750716671693,9.826e-05,144.54,144.4,71.22]
[1750716671892,9.826e-05,144.54,144.53,16.12445535]
[1750716672087,78.1971,144.67,144.53,16.12445535]
[1750716672088,5.69161119,144.66,144.53,16.12445535]
[1750716672291,71.22,144.73,144.6,16.12445535]
[1750716672488,598.6,144.74,144.6,16.12445535]
[1750716672789,598.6,144.74,144.56,71.22]
[1750716672790,5.68239786,144.73,144.51,669.48]
[1750716672991,16.12445535,144.67,144.54,16.12445535]
[1750716673287,16.12445535,144.64,144.5,16.12445535]
[1750716673595,71.16,144.65,144.5,16.12445535]
[1750716673782,71.16,144.65,144.53,16.12445535]
[1750716674094,71.16,144.65,144.48,191.02]
[1750716674095,16.12445535,144.6,144.43,71.22]
[1750716674291,16.12445535,144.62,144.5,16.12445535]
[1750716674590,16.12445535,144.63,144.5,16.12445535]
[1750716674990,16.12445535,144.64,144.51,16.12445535]
[1750716675189,6.9147,144.55,144.48,6.9173]
[1750716675499,6.9147,144.55,144.43,71.22]
[1750716675500,71.16,144.65,144.43,71.22]
[1750716675685,87.28445535,144.65,144.51,16.12445535]
[1750716676185,16.12445535,144.62,144.49,16.12445535]
[1750716676385,71.16,144.65,144.43,71.22]
[1750716676579,16.12445535,144.63,144.49,16.12445535]
[1750716676982,608.32599001,144.74,144.57,16.12445535]
[1750716677195,7.0206,144.73,144.6,16.12445535]
[1750716677394,7.0206,144.73,144.58,62.0]
[1750716677603,7.0206,144.73,144.61,16.12445535]
[1750716678091,7.0206,144.73,144.64,16.12445535]
[1750716678289,7.0206,144.73,144.58,62.0]
[1750716678496,23.14505535,144.73,144.59,16.12445535]
[1750716678803,7.0206,144.73,144.59,16.12445535]
[1750716679394,7.0206,144.73,144.62,16.12445535]
[1750716680390,6.9067,144.71,144.65,23.03385535]
[1750716680591,77.54229826,144.77,144.65,23.03385535]
[1750716680592,77.54229826,144.77,144.65,16.12445535]
[1750716681090,77.54229826,144.77,144.58,62.0]
[1750716681297,77.54229826,144.77,144.62,16.12445535]
[1750716681496,77.54229826,144.77,144.61,16.12445535]
[1750716681691,77.54229826,144.77,144.64,16.12445535]
[1750716681898,77.54229826,144.77,144.55,73.46]
[1750716682089,77.54229826,144.77,144.66,16.12445535]
[1750716682290,77.54229826,144.77,144.63,16.12445535]
[1750716682693,77.54229826,144.77,144.66,16.12445535]
[1750716682899,77.54229826,144.77,144.64,16.12445535]
[1750716683292,77.54229826,144.77,144.55,73.46]
[1750716683599,77.54229826,144.77,144.66,16.12445535]
[1750716683993,77.54229826,144.77,144.55,73.46]
[1750716684186,77.54229826,144.77,144.65,16.12445535]
[1750716684392,9.74998174,144.76,144.65,9.74998174]
[1750716684696,9.74998174,144.74,144.56,62.0]
[1750716684894,2.187,144.73,144.64,9.74998174]
[1750716685097,2.187,144.73,144.65,9.74998174]
[1750716685288,2.187,144.73,144.66,9.74998174]
[1750716685488,2.187,144.73,144.6,9.74998174]
[1750716685685,2.187,144.73,144.66,9.74998174]
[1750716685885,4.08229826,144.77,144.72,9.74998174]
[1750716686099,10.98649826,144.77,144.73,9.74998174]
[1750716686294,4.08229826,144.77,144.73,9.74998174]
[1750716686500,4.08229826,144.77,144.65,75.5]
[1750716686701,4.08229826,144.77,144.76,9.74998174]
[1750716687099,4.08229826,144.77,144.75,9.74998174]
[1750716687397,4.08229826,144.77,144.72,9.74998174]
[1750716688096,4.08229826,144.77,144.71,9.74998174]
[1750716688491,4.08229826,144.77,144.69,9.74998174]
[1750716689299,4.08229826,144.77,144.68,9.74998174]
[1750716689800,4.08229826,144.77,144.71,9.74998174]
[1750716690399,13.83228,144.77,144.6,75.48]
[1750716690697,13.83228,144.77,144.63,9.74998174]
[1750716690698,9.74998174,144.74,144.63,9.74998174]
[1750716690888,4.6271,144.76,144.69,9.74998174]
[1750716691095,4.08229826,144.77,144.63,75.48]
[1750716691402,4.08229826,144.77,144.67,9.74998174]
[1750716691601,4.08229826,144.77,144.65,9.74998174]
[1750716691791,4.08229826,144.77,144.68,9.74998174]
[1750716691993,4.08229826,144.77,144.63,75.48]
[1750716692301,4.08229826,144.77,144.68,9.74998174]
[1750716693002,6.9057,144.74,144.68,9.74998174]
[1750716693202,4.08229826,144.77,144.68,9.74998174]
[1750716693386,4.08229826,144.77,144.66,9.74998174]
[1750716694399,6.9065,144.72,144.67,6.9083]
[1750716694699,4.08229826,144.77,144.63,75.48]
[1750716694700,4.08229826,144.77,144.65,9.74998174]
[1750716694903,13.83228,144.77,144.65,9.74998174]
[1750716695202,4.08229826,144.77,144.69,9.74998174]
[1750716695504,4.08229826,144.77,144.67,9.74998174]
[1750716695697,4.08229826,144.77,144.7,9.74998174]
[1750716695903,4.08229826,144.77,144.76,6.9043]
[1750716697003,9.826e-05,144.83,144.82,6.9014]
[1750716697363,2.3668,144.96,144.8,9.74998174]
[1750716697511,2.3668,144.96,144.9,6.8972]
[1750716697702,2.3668,144.96,144.84,75.44]
[1750716698004,4.497,144.99,144.84,75.44]
[1750716698005,2.2315,144.99,144.9,9.74998174]
[1750716698206,4.08229826,145.0,144.84,75.44]
[1750716698207,4.08229826,145.0,144.91,9.74998174]
[1750716698506,4.08229826,145.0,144.91,71.74998174]
[1750716698705,4.08229826,145.0,144.91,62.0]
[1750716698897,4.08229826,145.0,144.94,9.74998174]
[1750716699098,4.08229826,145.0,144.92,75.44]
[1750716699303,4.08229826,145.0,144.99,9.74998174]
[1750716699512,0.08229826,145.0,144.92,82.34]
[1750716699805,0.08229826,145.0,144.99,9.74998174]
[1750716700011,0.08229826,145.0,144.93,215.5]
[1750716700203,0.08229826,145.0,144.99,9.74998174]
[1750716700405,0.08229826,145.0,144.98,9.74998174]
[1750716700607,0.08229826,145.0,144.93,215.5]
[1750716700809,0.08229826,145.0,144.95,9.74998174]
[1750716701002,0.08229826,145.0,144.85,215.58]
[1750716701203,0.08229826,145.0,144.91,6.897]
[1750716701505,0.08229826,145.0,144.97,9.74998174]
[1750716701905,0.08229826,145.0,144.94,6.8956]
[1750716701906,0.08229826,145.0,144.94,9.74998174]
[1750716702101,0.08229826,145.0,144.82,596.24]
[1750716702306,16.0672097,145.0,144.83,216.56]
[1750716702506,15.98491144,144.94,144.73,596.24]
[1750716702708,6.8989,144.88,144.8,6.9023]
[1750716702910,7.0561,144.93,144.8,15.98491144]
[1750716703409,7.0561,144.93,144.79,15.98491144]
[1750716703608,15.98491144,144.92,144.77,15.98491144]
[1750716704287,23.04101144,144.93,144.77,15.98491144]
[1750716704324,7.0561,144.93,144.8,15.98491144]
[1750716704333,7.0561,144.93,144.81,15.98491144]
[1750716704416,7.0561,144.93,144.77,15.98491144]
[1750716704598,15.98491144,144.9,144.74,15.98491144]
[1750716704806,15.98491144,144.87,144.75,6.9044]
[1750716705001,7.0561,144.93,144.67,612.12491144]
[1750716705210,15.98491144,144.8,144.68,62.0]
[1750716705416,15.98491144,144.77,144.63,15.98491144]
[1750716705612,15.98491144,144.74,144.6,15.98491144]
[1750716705821,15.98491144,144.74,144.58,596.14]
[1750716705822,2.29,144.78,144.58,596.14]
[1750716706022,2.29,144.78,144.71,15.98491144]
[1750716706322,11.3864,144.79,144.71,6.9065]
[1750716706532,4.4832,144.79,144.7,15.98491144]
[1750716706819,15.98491144,144.76,144.63,15.98491144]
[1750716707027,15.98491144,144.76,144.62,15.98491144]
[1750716707222,15.98491144,144.76,144.58,596.14]
[1750716707223,15.98491144,144.76,144.6,15.98491144]
[1750716707422,15.98491144,144.73,144.6,15.98491144]
[1750716707624,4.4832,144.79,144.58,612.12491144]
[1750716707819,15.98491144,144.75,144.58,596.14]
[1750716708130,15.98491144,144.75,144.62,15.98491144]
[1750716708337,4.4832,144.79,144.66,15.98491144]
[1750716708728,4.4832,144.79,144.67,15.98491144]
[1750716708931,4.4832,144.79,144.7,15.98491144]
[1750716709325,4.4832,144.79,144.72,15.98491144]
[1750716709524,2.29,144.84,144.75,15.98491144]
[1750716709730,4.6251,144.86,144.75,15.98491144]
[1750716709930,4.6251,144.86,144.82,6.901]
[1750716710230,4.6251,144.86,144.77,15.98491144]
[1750716710526,4.6251,144.86,144.72,15.98491144]
[1750716710831,20.61001144,144.86,144.72,15.98491144]
[1750716711320,4.6251,144.86,144.75,15.98491144]
[1750716712334,4.6251,144.86,144.78,15.98491144]
[1750716712537,4.6251,144.86,144.77,15.98491144]
[1750716712722,4.6251,144.86,144.76,62.0]
[1750716712723,15.98491144,144.85,144.7,596.42]
[1750716713032,15.98491144,144.76,144.61,596.38]
[1750716713232,15.98491144,144.76,144.61,15.98491144]
[1750716713531,15.98491144,144.81,144.67,15.98491144]
[1750716713733,5.96749946,144.8,144.67,15.98491144]
[1750716713930,5.96749946,144.79,144.67,15.98491144]
[1750716714132,5.96749946,144.78,144.64,15.98491144]
[1750716714428,5.97386782,144.77,144.67,15.98491144]
[1750716714636,4.4894,144.84,144.6,13.8235]
[1750716714637,5.97386782,144.8,144.7,15.98491144]
[1750716714936,5.97261471,144.83,144.7,15.98491144]
[1750716715137,4.4894,144.84,144.7,15.98491144]
[1750716715138,5.97261471,144.82,144.75,6.9043]
[1750716715338,5.97261471,144.82,144.7,15.98491144]
[1750716715339,5.97261471,144.81,144.7,15.98491144]
[1750716715628,5.97261471,144.8,144.7,15.98491144]
[1750716715828,4.4894,144.84,144.71,62.0]
[1750716716132,5.97816878,144.83,144.73,15.98491144]
[1750716716428,5.98212399,144.82,144.73,15.98491144]
[1750716716627,4.4894,144.84,144.77,6.9032]
[1750716716824,5.98201972,144.83,144.73,15.98491144]
[1750716717040,11.3898,144.84,144.79,6.9024]
[1750716717328,11.3898,144.84,144.71,219.14]
[1750716717329,5.98506193,144.83,144.75,15.98491144]
[1750716717532,4.4894,144.84,144.71,235.12491144]
[1750716717533,5.98529713,144.82,144.71,235.12491144]
[1750716717738,5.98529713,144.81,144.71,235.12491144]
[1750716717937,4.4894,144.84,144.71,219.14]
[1750716718124,5.98618643,144.83,144.71,235.12491144]
[1750716718324,5.98618643,144.82,144.71,235.12491144]
[1750716718525,5.98618643,144.81,144.71,15.98491144]
[1750716718834,5.98618643,144.8,144.66,15.98491144]
[1750716719135,21.97109787,144.79,144.65,15.98491144]
[1750716719326,5.98618643,144.78,144.66,62.0]
[1750716719530,5.98618643,144.77,144.66,62.0]
[1750716719837,5.98618643,144.76,144.66,62.0]
[1750716720032,5.98618643,144.75,144.66,62.0]
[1750716720235,5.98618643,144.74,144.66,62.0]
[1750716720436,15.98491144,144.8,144.66,62.0]
[1750716720738,6.00059458,144.79,144.67,15.98491144]
[1750716721030,6.00059458,144.79,144.63,218.5]
[1750716721031,9.458e-05,144.78,144.77,6.9033]
[1750716721343,8.20251003,144.88,144.63,239.28]
[1750716721344,15.98491144,144.85,144.76,6.904]
[1750716721533,20.96,144.86,144.48,43.65341144]
[1750716721839,8.20251003,144.81,144.66,15.98491144]
[1750716722141,8.20251003,144.84,144.71,15.98491144]
[1750716722341,15.98491144,144.79,144.65,596.5]
[1750716722669,8.20251003,144.86,144.76,15.98491144]
[1750716722935,8.20251003,144.95,144.81,15.98491144]
[1750716723135,8.20251003,144.96,144.84,15.98491144]
[1750716723341,24.18742147,144.95,144.74,596.5]
[1750716723546,24.18742147,144.95,144.77,62.0]
[1750716723547,8.20251003,144.94,144.77,62.0]
[1750716723741,8.20251003,144.94,144.85,15.98491144]
[1750716724041,8.20251003,144.95,144.82,15.98491144]
[1750716724247,15.98491144,144.96,144.77,62.0]
[1750716724248,8.20251003,144.94,144.77,62.0]
[1750716724436,8.20251003,144.93,144.8,15.98491144]
[1750716724635,24.18742147,144.91,144.78,15.98491144]
[1750716724859,24.18742147,144.91,144.59,20.7361]
[1750716724860,15.98491144,144.86,144.72,15.98491144]
[1750716725053,15.98491144,144.83,144.69,15.98491144]
[1750716725232,4.6343,144.85,144.67,15.98491144]
[1750716725432,6.9037,144.77,144.7,15.98491144]
[1750716725840,15.98491144,144.82,144.68,15.98491144]
[1750716726040,2.4264,144.81,144.68,15.98491144]
[1750716726242,18.41131144,144.81,144.67,15.98491144]
[1750716726642,2.4264,144.81,144.67,15.98491144]
[1750716726838,18.41131144,144.81,144.67,15.98491144]
[1750716727047,4.6343,144.85,144.66,222.82]
[1750716727243,4.6343,144.85,144.75,15.98491144]
[1750716727540,4.6343,144.85,144.73,15.98491144]
[1750716727730,15.98491144,144.93,144.79,15.98491144]
[1750716727935,2.2737,144.92,144.82,15.98491144]
[1750716728353,596.46,144.96,144.77,222.64]
[1750716728354,15.98491144,144.99,144.85,15.98491144]
[1750716728642,22.89521144,144.99,144.85,15.98491144]
[1750716728831,22.89521144,144.99,144.77,222.64]
[1750716729037,22.89521144,144.99,144.81,15.98491144]
[1750716729038,15.98491144,144.96,144.81,15.98491144]
[1750716729340,15.98491144,144.95,144.8,15.98491144]
[1750716729670,15.98491144,144.96,144.83,15.98491144]
[1750716729677,22.89521144,144.99,144.77,222.38]
[1750716729943,0.08229826,145.0,144.93,15.98491144]
[1750716730244,0.08229826,145.0,144.92,15.98491144]
[1750716730437,0.08229826,145.0,144.95,15.98491144]
[1750716730646,9.826e-05,145.0,144.99,6.8932]